bitfinex-derivatives/quotes_ETHF0:USTF0_20260119
["timestamp","ask_amount","ask_price","bid_price","bid_amount"]
[1768856638921,0.84552331,3219.4,3218.2,0.15545]
[1768856639110,0.00302864,3219.5,3218.2,0.15545]
[1768856639312,0.8455239,3219.4,3218.2,0.15545]
[1768856639512,0.00302864,3219.5,3218.2,0.15545]
[1768856639720,0.84552157,3219.4,3218.2,0.15545]
[1768856640021,0.00302864,3219.5,3218.2,0.15545]
[1768856640215,0.84552461,3219.4,3218.2,0.15545]
[1768856640413,0.00302864,3219.5,3218.2,0.15545]
[1768856640622,0.84552331,3219.4,3218.2,0.15545]
[1768856640822,0.00302864,3219.5,3218.2,0.15545]
[1768856641127,0.84552456,3219.4,3218.2,0.15545]
[1768856641422,0.00302864,3219.5,3218.2,0.15545]
[1768856641619,0.84552038,3219.4,3218.2,0.15545]
[1768856641822,0.00302864,3219.5,3218.2,0.15545]
[1768856642023,0.84551863,3219.4,3218.2,0.15545]
[1768856642222,0.00302864,3219.5,3218.2,0.15545]
[1768856642426,0.84552231,3219.4,3218.2,0.15545]
[1768856642620,0.00302864,3219.5,3218.2,0.15545]
[1768856642827,0.8455223,3219.4,3218.2,0.15545]
[1768856643127,2.97817449,3219.5,3218.2,0.15545]
[1768856643426,0.8455253,3219.4,3218.2,0.15545]
[1768856643628,2.97817449,3219.5,3218.2,0.15545]
[1768856643825,0.84554275,3219.4,3218.2,0.15545]
[1768856644122,2.97817449,3219.5,3218.2,0.15545]
[1768856644322,0.84554358,3219.4,3218.2,0.15545]
[1768856644528,2.97817449,3219.5,3218.2,0.15545]
[1768856644728,0.84556312,3219.4,3218.2,0.15545]
[1768856645025,2.97817449,3219.5,3218.2,0.15545]
[1768856645226,2.97514585,3219.3,3218.2,0.15545]
[1768856645722,0.00302864,3219.5,3218.2,0.15545]
[1768856645924,0.84557491,3219.4,3218.2,0.15545]
[1768856646117,0.00302864,3219.5,3218.2,0.15545]
[1768856646329,0.8455707,3219.4,3218.2,0.15545]
[1768856646522,0.00302864,3219.5,3218.2,3.0750003]
[1768856651528,0.00302864,3219.5,3218.4,0.15544]
[1768856651733,0.00302864,3219.5,3218.4,4.36309595]
[1768856651930,0.00302864,3219.5,3218.5,2.9195503]
[1768856654624,0.00302864,3219.5,3218.6,2.9195503]
[1768856654830,1.64418883,3220.8,3219.1,3.0749503]
[1768856655131,0.84687827,3220.7,3219.1,3.0749503]
[1768856655329,0.84687827,3220.6,3219.2,40.8]
[1768856655531,3.13046585,3220.9,3219.2,43.7195503]
[1768856655734,0.84225448,3220.8,3219.2,43.7195503]
[1768856655933,0.84225448,3220.7,3219.2,43.7195503]
[1768856656133,0.84225448,3220.6,3219.2,43.7195503]
[1768856656332,3.13342848,3220.9,3219.2,43.7195503]
[1768856656538,0.84163094,3220.8,3219.2,43.7195503]
[1768856656740,0.84163094,3220.7,3219.2,43.7195503]
[1768856656944,0.84163094,3220.6,3219.2,43.7195503]
[1768856657235,3.13342848,3220.9,3219.2,43.7195503]
[1768856657435,0.84118039,3220.8,3219.2,43.7195503]
[1768856657634,0.84118039,3220.7,3219.2,43.7195503]
[1768856657829,3.13342848,3220.9,3219.2,43.7195503]
[1768856658139,2.97514585,3220.5,3219.2,40.8]
[1768856658438,2.97514585,3220.5,3219.1,0.1554]
[1768856659139,2.97514585,3220.5,3218.7,0.15542]
[1768856659333,0.84066785,3220.4,3218.7,0.15542]
[1768856659540,2.97514585,3220.3,3218.7,0.15542]
[1768856659734,2.97514585,3220.3,3218.7,40.95542]
[1768856660138,2.97514585,3220.3,3218.8,2.9195503]
[1768856660338,1.28810565,3220.6,3218.8,2.9195503]
[1768856660538,0.84059525,3220.5,3218.8,2.9195503]
[1768856660845,0.84059525,3220.4,3218.8,2.9195503]
[1768856661043,2.97514585,3220.5,3218.8,2.9195503]
[1768856661246,0.84058413,3220.4,3218.8,2.9195503]
[1768856661541,2.97514585,3220.5,3218.8,2.9195503]
[1768856661739,0.84051419,3220.4,3218.8,2.9195503]
[1768856661938,2.97514585,3220.5,3218.8,2.9195503]
[1768856662139,2.97514585,3220.3,3218.7,40.95542]
[1768856665051,2.97514585,3220.3,3218.8,4.204]
[1768856674361,2.97514585,3220.3,3218.8,4.35942]
[1768856674569,2.97514585,3220.3,3218.8,7.29598912]
[1768856674864,0.15533,3220.6,3218.9,2.93656912]
[1768856675065,0.83762674,3220.5,3218.9,2.93656912]
[1768856675366,0.83762674,3220.4,3218.9,2.93656912]
[1768856675567,0.83762674,3220.3,3218.9,2.93656912]
[1768856675866,0.15533,3220.6,3218.9,2.93656912]
[1768856675867,2.94401065,3220.5,3218.9,2.93656912]
[1768856676163,0.83772646,3220.4,3218.9,2.93656912]
[1768856676465,0.83772646,3220.3,3218.9,2.93656912]
[1768856676764,2.94401065,3220.5,3218.9,2.93656912]
[1768856676966,0.83782749,3220.4,3218.9,2.93656912]
[1768856677163,0.83782749,3220.3,3218.9,2.93656912]
[1768856677366,2.94401065,3220.5,3218.9,2.93656912]
[1768856677665,0.83792566,3220.4,3218.9,2.93656912]
[1768856677858,0.83792566,3220.3,3218.9,2.93656912]
[1768856678059,2.94401065,3220.5,3218.9,2.93656912]
[1768856678261,0.83791656,3220.4,3218.9,2.93656912]
[1768856678456,0.83791656,3220.3,3218.9,2.93656912]
[1768856678660,2.94401065,3220.5,3218.9,2.93656912]
[1768856678962,0.83802732,3220.4,3218.9,2.93656912]
[1768856679160,0.83802732,3220.3,3218.9,2.93656912]
[1768856679368,2.94401065,3220.5,3218.9,2.93656912]
[1768856679573,0.83815725,3220.4,3218.9,2.93656912]
[1768856679763,0.83815725,3220.3,3218.9,2.93656912]
[1768856680065,0.00296263,3220.9,3219.4,4.22467477]
[1768856680271,0.83826904,3220.8,3219.5,2.93656912]
[1768856680570,0.83826904,3220.7,3219.5,2.93656912]
[1768856680770,0.00296263,3220.9,3219.5,2.93656912]
[1768856681067,0.83834421,3220.8,3219.5,2.93656912]
[1768856681267,0.83834421,3220.7,3219.5,2.93656912]
[1768856681460,0.83834421,3220.6,3219.5,2.93656912]
[1768856681661,0.00296263,3220.9,3219.5,2.93656912]
[1768856681861,0.83841657,3220.8,3219.5,2.93656912]
[1768856682068,0.83841657,3220.7,3219.5,2.93656912]
[1768856682269,0.83850353,3220.6,3219.5,2.93656912]
[1768856682565,0.00296263,3220.9,3219.5,2.93656912]
[1768856682764,0.83851419,3220.8,3219.5,2.93656912]
[1768856682965,0.83851419,3220.7,3219.5,2.93656912]
[1768856683263,0.83851419,3220.6,3219.5,2.93656912]
[1768856683460,0.00296263,3220.9,3219.5,2.93656912]
[1768856683655,0.8386515,3220.8,3219.5,2.93656912]
[1768856683855,0.8386515,3220.7,3219.5,2.93656912]
[1768856684064,0.8386515,3220.6,3219.5,2.93656912]
[1768856684270,0.00296263,3220.9,3219.5,2.93656912]
[1768856684466,0.8388578,3220.8,3219.5,2.93656912]
[1768856684769,0.8388578,3220.7,3219.5,2.93656912]
[1768856684970,0.8388578,3220.6,3219.5,2.93656912]
[1768856685167,0.00296263,3220.9,3219.5,2.93656912]
[1768856685465,0.83879508,3220.8,3219.5,2.93656912]
[1768856685663,0.83879508,3220.7,3219.5,2.93656912]
[1768856685864,0.83879508,3220.6,3219.5,2.93656912]
[1768856686068,0.00296263,3220.9,3219.5,2.93656912]
[1768856686273,0.83881103,3220.8,3219.5,2.93656912]
[1768856686470,0.83881103,3220.7,3219.5,2.93656912]
[1768856686768,0.83881103,3220.6,3219.5,2.93656912]
[1768856686970,0.00296263,3220.9,3219.5,2.93656912]
[1768856687166,0.83876411,3220.8,3219.5,2.93656912]
[1768856687371,0.83876411,3220.7,3219.5,2.93656912]
[1768856687572,0.83876411,3220.6,3219.5,2.93656912]
[1768856687769,2.83088825,3220.9,3219.5,2.93656912]
[1768856687965,0.83874183,3220.8,3219.5,2.93656912]
[1768856688169,2.82792562,3220.6,3219.4,0.00313492]
[1768856688477,0.83874183,3220.5,3219.4,0.00313492]
[1768856688671,2.82792562,3220.6,3219.4,0.00313492]
[1768856688869,0.83869874,3220.5,3219.4,0.00313492]
[1768856689072,2.82792562,3220.6,3219.4,0.00313492]
[1768856689270,3.66662436,3220.5,3219.4,0.00313492]
[1768856689470,2.82792562,3220.5,3219.4,0.00313492]
[1768856690876,1.28748922,3220.4,3219.4,0.00313492]
[1768856693683,2.82792562,3220.5,3219.4,0.00313492]
[1768856693873,1.28748922,3220.8,3219.4,0.00313492]
[1768856694182,0.83863649,3220.7,3219.5,1.28748922]
[1768856694386,0.83863649,3220.6,3219.5,1.28748922]
[1768856694676,1.28748922,3220.8,3219.5,1.28748922]
[1768856694877,0.83865143,3220.7,3219.5,1.28748922]
[1768856695083,0.83865143,3220.6,3219.5,1.28748922]
[1768856695386,4.10691237,3220.6,3219.4,0.00313492]
[1768856696378,1.28748922,3220.4,3219.4,0.00313492]
[1768856700687,1.28748922,3219.8,3219.4,0.00313492]
[1768856700984,1.28748922,3220.0,3218.9,0.15541]
[1768856701393,2.81942315,3220.1,3218.9,0.15541]
[1768856701892,2.81942315,3220.1,3218.9,0.15768862]
[1768856702188,4.10691237,3220.1,3218.9,0.15768862]
[1768856703294,2.81942315,3220.1,3218.9,1.44517784]
[1768856703493,2.81942315,3220.5,3219.2,1.28748922]
[1768856703694,0.83728676,3220.4,3219.2,1.28748922]
[1768856703894,0.83728676,3220.3,3219.2,1.28748922]
[1768856704188,0.83728676,3220.2,3219.2,1.28748922]
[1768856704386,0.83728676,3220.1,3219.2,1.28748922]
[1768856704689,2.81942315,3220.5,3219.2,1.28748922]
[1768856704884,0.83742699,3220.4,3219.2,1.28748922]
[1768856705081,0.83742699,3220.3,3219.2,1.28748922]
[1768856705281,0.83742699,3220.2,3219.2,1.28748922]
[1768856705485,0.83742699,3220.1,3219.2,1.28748922]
[1768856705692,2.81942315,3220.5,3219.2,1.28748922]
[1768856705893,0.83752071,3220.4,3219.2,1.28748922]
[1768856706094,0.83752071,3220.3,3219.2,1.28748922]
[1768856706291,0.83752071,3220.2,3219.2,1.28748922]
[1768856706491,0.83752071,3220.1,3219.2,1.28748922]
[1768856706789,2.81942315,3220.5,3219.2,1.28748922]
[1768856706990,0.83759057,3220.4,3219.2,1.28748922]
[1768856707191,0.83759057,3220.3,3219.2,1.28748922]
[1768856707494,0.83759057,3220.2,3219.2,1.28748922]
[1768856707794,0.83759057,3220.1,3219.2,1.28748922]
[1768856708093,2.81942315,3220.5,3219.2,1.28748922]
[1768856708291,0.83757072,3220.4,3219.2,1.28748922]
[1768856708493,0.83757072,3220.3,3219.2,1.28748922]
[1768856708689,0.83757072,3220.2,3219.2,1.28748922]
[1768856708890,0.83757072,3220.1,3219.2,1.28748922]
[1768856709091,2.81942315,3220.5,3219.2,1.28748922]
[1768856709288,0.83734547,3220.4,3219.2,1.28748922]
[1768856709492,0.83734547,3220.3,3219.2,1.28748922]
[1768856709691,2.12483469,3220.2,3219.0,1.44289922]
[1768856709897,0.83734547,3220.1,3219.0,1.44289922]
[1768856710098,1.28748922,3220.2,3219.0,1.44289922]
[1768856710288,0.83720548,3220.1,3219.0,1.44289922]
[1768856710489,1.28748922,3220.2,3219.0,1.44289922]
[1768856710688,0.83715762,3220.1,3219.0,0.15541]
[1768856710886,1.28748922,3220.2,3219.0,0.15541]
[1768856711197,0.83715815,3220.1,3219.0,0.15541]
[1768856711397,1.28748922,3220.2,3219.0,0.15541]
[1768856711603,0.83717727,3220.1,3219.0,0.15541]
[1768856711792,1.28748922,3220.2,3219.0,0.15541]
[1768856711992,0.83717916,3220.1,3219.0,0.15541]
[1768856712201,1.28748922,3220.2,3219.0,0.15541]
[1768856712492,0.83718205,3220.1,3219.0,0.15541]
[1768856712698,4.10691237,3220.4,3219.0,0.15541]
[1768856712901,0.83733224,3220.3,3219.0,0.15541]
[1768856713099,0.83733224,3220.2,3219.0,0.15541]
[1768856713290,0.83733224,3220.1,3219.0,0.15541]
[1768856713490,2.81942315,3220.3,3219.0,0.15541]
[1768856713790,0.83737125,3220.2,3219.0,0.15541]
[1768856713990,2.81942315,3220.3,3219.1,1.28748922]
[1768856714190,0.83741264,3220.2,3219.1,1.28748922]
[1768856714493,2.81942315,3220.3,3219.1,1.28748922]
[1768856714797,0.83743773,3220.2,3219.1,1.28748922]
[1768856714991,2.81942315,3220.3,3219.1,1.28748922]
[1768856715299,2.81942315,3220.7,3219.4,1.28748922]
[1768856715598,0.83760787,3220.6,3219.4,1.28748922]
[1768856715789,2.81942315,3220.7,3219.4,1.28748922]
[1768856715988,0.83759555,3220.6,3219.4,1.28748922]
[1768856716190,2.81942315,3220.7,3219.4,1.28748922]
[1768856716392,0.83760878,3220.6,3219.4,1.28748922]
[1768856716591,2.81942315,3220.7,3219.4,1.28748922]
[1768856716800,0.83772646,3220.6,3219.4,1.28748922]
[1768856717101,2.81942315,3220.7,3219.4,1.28748922]
[1768856717300,0.83786702,3220.6,3219.4,1.28748922]
[1768856717500,2.81942315,3220.7,3219.4,1.28748922]
[1768856717801,0.83792609,3220.6,3219.6,1.28748922]
[1768856717999,1.29045185,3220.9,3219.6,1.28748922]
[1768856718198,0.83796764,3220.8,3219.6,1.28748922]
[1768856718395,0.83796764,3220.7,3219.6,1.28748922]
[1768856718594,0.83796764,3220.6,3219.6,1.28748922]
[1768856718799,4.109875,3220.9,3219.4,1.28748922]
[1768856718988,1.28748922,3220.5,3219.3,0.15539]
[1768856719191,2.81942315,3220.6,3219.3,0.15539]
[1768856719594,0.83800913,3220.5,3219.3,0.15539]
[1768856719794,2.81942315,3220.6,3219.3,0.15539]
[1768856719995,0.83803897,3220.5,3219.3,0.15539]
[1768856720303,2.81942315,3220.6,3219.3,0.15539]
[1768856720504,0.83808334,3220.5,3219.3,0.15539]
[1768856720697,2.81942315,3220.6,3219.3,0.15539]
[1768856720896,0.83808334,3220.5,3219.3,0.15539]
[1768856721097,2.81942315,3220.6,3219.3,0.15539]
[1768856721298,0.83808334,3220.5,3219.3,0.15539]
[1768856721600,2.81942315,3220.6,3219.3,0.15539]
[1768856721801,0.8382741,3220.5,3219.3,0.15539]
[1768856722005,1.28748922,3220.5,3219.3,0.15539]
[1768856722297,2.81942315,3220.4,3219.3,0.15539]
[1768856722503,2.81942315,3220.2,3219.3,0.15539]
[1768856725601,4.14499849,3220.6,3219.3,0.15539]
[1768856725906,0.83833639,3220.5,3219.3,0.15539]
[1768856726206,4.14499849,3220.6,3219.3,0.15539]
[1768856726406,0.83836198,3220.5,3219.3,0.15539]
[1768856726614,4.14499849,3220.6,3219.3,0.15539]
[1768856726813,0.84037429,3220.5,3219.3,0.15539]
[1768856727001,4.14499849,3220.6,3219.3,0.15539]
[1768856727201,0.84037545,3220.5,3219.4,1.28748922]
[1768856727505,2.85750927,3220.6,3219.4,1.28748922]
[1768856727706,0.84038074,3220.5,3219.4,1.28748922]
[1768856727908,2.85750927,3220.6,3219.4,1.28748922]
[1768856728101,0.84037907,3220.5,3219.4,1.28748922]
[1768856728304,2.85750927,3220.6,3219.4,1.28748922]
[1768856728608,0.84038869,3220.5,3219.4,1.28748922]
[1768856728805,2.85750927,3220.6,3219.3,0.15539]
[1768856729007,0.84038839,3220.5,3219.3,0.15539]
[1768856729206,4.14499849,3220.6,3219.3,0.15539]
[1768856729407,0.8403994,3220.5,3219.3,0.15539]
[1768856729707,4.14499849,3220.6,3219.3,0.15539]
[1768856730009,0.84039418,3220.5,3219.3,0.15539]
[1768856730307,4.14499849,3220.6,3219.3,0.15539]
[1768856730508,0.84039236,3220.5,3219.3,0.15539]
[1768856730806,4.14499849,3220.6,3219.3,0.15539]
[1768856731009,0.84039013,3220.5,3219.3,0.15539]
[1768856731206,4.14499849,3220.6,3219.3,0.15539]
[1768856731408,0.84035463,3220.5,3219.3,0.15539]
[1768856731710,4.14499849,3220.6,3219.3,0.15539]
[1768856731913,0.84040395,3220.5,3219.3,0.15539]
[1768856732214,4.14499849,3220.6,3219.3,0.15539]
[1768856732408,0.84042708,3220.5,3219.3,0.15539]
[1768856732712,4.14499849,3220.2,3219.3,0.15539]
[1768856733208,2.85750927,3220.2,3219.3,0.15539]
[1768856733817,2.85750927,3220.6,3219.3,1.44287922]
[1768856734006,0.84047015,3220.5,3219.3,1.44287922]
[1768856734205,2.85750927,3220.6,3219.3,1.44287922]
[1768856734406,0.84046997,3220.5,3219.3,1.44287922]
[1768856734610,0.00296263,3220.9,3220.3,1.28748922]
[1768856734808,0.00296263,3220.9,3220.0,1.28748922]
[1768856735015,0.84057874,3220.8,3220.0,1.28748922]
[1768856735308,0.00296263,3220.9,3220.0,1.28748922]
[1768856745018,0.00296263,3220.9,3220.2,1.28748922]
[1768856745223,3.02039161,3221.4,3220.2,1.28748922]
[1768856745422,0.84022227,3221.3,3220.2,1.28748922]
[1768856745619,3.02039161,3221.4,3220.2,1.28748922]
[1768856746223,3.02335981,3221.4,3220.2,1.28748922]
[1768856746423,3.02335981,3221.4,3219.9,3.06829748]
[1768856746424,4.31084903,3221.4,3220.0,1.28748922]
[1768856747109,1.28748922,3221.0,3219.9,0.15536]
[1768856747423,1.28748922,3221.2,3219.9,0.15536]
[1768856747624,1.28748922,3221.2,3219.9,1.44284922]
[1768856747823,3.02039161,3221.3,3219.9,1.44284922]
[1768856749140,0.0029682,3221.4,3220.1,1.28748922]
[1768856749624,0.0029682,3221.4,3220.3,1.28748922]
[1768856749826,0.0029682,3221.4,3220.1,1.28748922]
[1768856750824,0.0029682,3221.4,3220.1,1.44283922]
[1768856751828,0.0029682,3221.4,3220.4,1.28748922]
[1768856753017,0.0029682,3221.4,3220.2,0.15535]
[1768856753623,0.0029682,3221.4,3220.3,0.15535]
[1768856763238,2.84462323,3221.4,3220.3,0.15535]
[1768856765941,2.84165503,3221.1,3219.7,2.92701044]
[1768856766143,2.84165503,3221.1,3219.7,0.15537]
[1768856766440,3.68212211,3221.0,3219.7,40.95537]
[1768856766643,2.84165503,3221.0,3219.7,40.95537]
[1768856767033,2.84165503,3221.0,3219.7,0.15537]
[1768856767339,0.84039658,3220.9,3219.7,0.15537]
[1768856767644,4.12807471,3220.8,3219.4,40.8]
[1768856768646,2.84165503,3220.8,3219.4,40.8]
[1768856769741,3.68176203,3220.7,3219.2,0.1554]
[1768856770044,1.28641968,3220.8,3219.2,0.1554]
[1768856770045,2.84165503,3220.5,3219.2,0.1554]
[1768856772347,2.84165503,3220.5,3218.8,3.679]
[1768856772536,2.84165503,3220.3,3218.8,3.679]
[1768856772738,2.84165503,3220.3,3218.8,44.479]
[1768856792256,2.55645999,3220.1,3218.8,44.479]
[1768856792958,2.55645999,3220.1,3218.8,44.63442]
[1768856795564,1.64418883,3220.6,3219.1,2.67446583]
[1768856795762,2.19906747,3220.9,3219.1,2.67446583]
[1768856795763,2.55645999,3221.5,3220.0,1.28641968]
[1768856796057,1.91326,3222.1,3219.9,0.15536]
[1768856796058,2.55645999,3221.8,3220.2,1.28641968]
[1768856796449,2.55645999,3221.8,3220.3,2.67446583]
[1768856802462,2.55645999,3221.8,3220.4,40.8]
[1768856803169,2.48418451,3221.5,3220.4,40.8]
[1768856804366,2.48715271,3221.4,3220.2,4.304]
[1768856804568,2.48418451,3221.3,3219.5,2.60257156]
[1768856804767,2.48418451,3221.3,3219.6,4.304]
[1768856805068,2.48418451,3221.3,3219.7,40.8]
[1768856805474,2.48418451,3221.3,3219.8,2.60257156]
[1768856805769,0.0029682,3221.4,3219.8,2.75794156]
[1768856806072,0.0029682,3221.4,3220.1,2.60257156]
[1768856806271,0.0029682,3221.4,3220.2,6.90757156]
[1768856806473,0.0029682,3221.4,3220.2,4.305]
[1768856813673,2.43111256,3221.4,3220.2,4.305]
[1768856815778,1.2866036,3221.3,3220.2,4.305]
[1768856817081,1.2866036,3221.3,3220.1,0.15535]
[1768856817879,1.2866036,3220.7,3220.1,0.15535]
[1768856818178,1.2866036,3220.9,3220.1,0.15535]
[1768856818577,3.71474796,3221.2,3220.1,0.15535]
[1768856818775,0.0029682,3221.4,3220.1,2.63873342]
[1768856818980,0.0029682,3221.4,3220.6,1.2866036]
[1768856819183,0.0029682,3221.4,3220.6,1.4419336]
[1768856819881,0.0029682,3221.4,3220.7,0.15533]
[1768856822689,0.0029682,3221.4,3220.8,0.15532]
[1768856822881,3.71474796,3222.0,3220.8,0.15532]
[1768856823382,0.82741023,3221.9,3220.8,0.15532]
[1768856823588,3.71474796,3222.0,3220.8,0.15532]
[1768856823776,0.82742279,3221.9,3220.8,0.15532]
[1768856823977,3.71710574,3222.0,3220.8,0.15532]
[1768856824176,0.82744195,3221.9,3220.8,0.15532]
[1768856824478,0.82744195,3221.8,3220.8,0.15532]
[1768856824674,3.71710574,3222.0,3220.8,0.15532]
[1768856824884,0.82814886,3221.9,3220.8,0.15532]
[1768856825089,0.82814886,3221.8,3220.8,0.15532]
[1768856825384,0.82933526,3221.7,3220.8,0.15532]
[1768856825573,3.71710574,3222.0,3220.8,0.15532]
[1768856825886,0.82932234,3221.9,3220.8,0.15532]
[1768856826089,0.82932234,3221.8,3220.8,0.15532]
[1768856826277,0.82932234,3221.7,3220.8,0.15532]
[1768856826478,3.71710574,3222.0,3220.8,0.15532]
[1768856826681,1.2866036,3221.8,3220.8,0.15532]
[1768856826978,0.82928947,3221.7,3220.8,0.15532]
[1768856827187,3.71710574,3222.0,3220.8,0.15532]
[1768856827375,0.82921409,3221.9,3220.8,0.15532]
[1768856827586,0.82921409,3221.8,3220.8,0.15532]
[1768856827782,0.82921409,3221.7,3220.8,0.15532]
[1768856828086,3.71474796,3221.8,3220.8,0.15532]
[1768856828288,0.82915734,3221.7,3220.8,0.15532]
[1768856828487,3.71474796,3221.8,3220.8,0.15532]
[1768856828689,0.82914362,3221.7,3220.8,0.15532]
[1768856828882,3.71474796,3221.8,3220.8,0.15532]
[1768856829193,0.82914552,3221.7,3220.8,0.15532]
[1768856829491,3.71474796,3221.8,3220.8,0.15532]
[1768856829788,0.82911821,3221.7,3220.8,0.15532]
[1768856829986,0.00235778,3222.0,3220.9,3.92533702]
[1768856830191,0.00235778,3222.0,3221.4,1.2866036]
[1768856830386,1.2866036,3222.6,3221.4,0.00290197]
[1768856830581,1.13140484,3222.5,3221.4,0.00290197]
[1768856830781,2.11560679,3222.4,3221.4,0.00290197]
[1768856830991,0.82900319,3222.3,3221.4,0.00290197]
[1768856831291,0.83295549,3222.3,3221.4,0.00290197]
[1768856831491,2.11560679,3222.2,3221.4,0.00290197]
[1768856831681,3.71474796,3222.0,3221.4,0.00290197]
[1768856831880,1.2866036,3221.7,3220.5,0.15533]
[1768856832291,1.2866036,3221.8,3220.5,0.15533]
[1768856832889,1.2866036,3221.8,3220.5,0.15932454]
[1768856833087,1.2866036,3221.9,3220.5,0.15932454]
[1768856833803,1.2866036,3221.9,3220.6,0.15533]
[1768856834687,1.2866036,3221.9,3220.7,0.15533]
[1768856835993,1.2866036,3221.9,3220.8,0.15532]
[1768856836688,1.2866036,3221.7,3220.8,0.15532]
[1768856839495,0.0039523,3222.3,3220.8,3.92533702]
[1768856839797,0.0039523,3222.3,3221.1,1.4419136]
[1768856840300,0.0039523,3222.3,3221.1,3.92533702]
[1768856841693,0.0039523,3222.3,3221.3,0.15529]
[1768856843997,1.2866036,3222.0,3220.8,0.15532]
[1768856845901,1.2866036,3222.1,3220.8,0.15532]
[1768856846398,1.2866036,3222.2,3220.8,0.15532]
[1768856846905,2.57374765,3222.3,3220.9,1.2866036]
[1768856847599,2.57374765,3222.3,3221.0,0.15531]
[1768856847994,1.2866036,3222.0,3221.0,0.15531]
[1768856849100,0.0039523,3222.3,3221.1,2.41836411]
[1768856849303,0.0039523,3222.3,3221.2,0.1553]
[1768856850810,0.0039523,3222.3,3221.3,1.4419036]
[1768856850998,0.0039523,3222.3,3221.4,0.15529]
[1768856855705,1.2866036,3222.0,3220.9,0.15532]
[1768856855902,1.2866036,3221.6,3220.9,0.15532]
[1768856856104,1.2866036,3221.6,3220.3,2.41836411]
[1768856856407,1.2866036,3221.6,3220.4,1.2866036]
[1768856857107,1.2866036,3221.6,3220.5,0.15932454]
[1768856865517,2.3600755,3221.5,3220.5,0.15932454]
[1768856876323,2.3600755,3221.5,3220.0,0.15536]
[1768856876520,2.3600755,3221.5,3219.0,4.39549526]
[1768856876521,2.40577385,3220.2,3219.1,2.77164044]
[1768856876727,2.40577385,3220.2,3218.6,8.80485691]
[1768856876930,2.40577385,3220.2,3218.4,4.339]
[1768856877230,2.40577385,3220.0,3218.7,0.15542]
[1768856877431,2.40846788,3220.0,3218.7,0.15826508]
[1768856877725,0.00269403,3220.0,3218.7,2.44870199]
[1768856878632,0.00269403,3220.0,3218.9,0.15541]
[1768856886030,0.00269403,3220.0,3219.0,0.15541]
[1768856886432,0.00269403,3220.0,3218.7,2.44870199]
[1768856886433,2.40577385,3221.2,3219.7,1.28649526]
[1768856886635,0.84076583,3221.1,3219.5,0.15538]
[1768856886834,0.84076583,3221.0,3219.5,0.15538]
[1768856887329,3.25056656,3221.0,3219.5,0.15538]
[1768856887530,2.40980073,3221.0,3219.5,0.15538]
[1768856887834,2.40577385,3220.6,3219.5,0.15538]
[1768856888132,2.40577385,3220.6,3218.8,0.15542]
[1768856888335,2.40577385,3220.6,3218.9,40.8]
[1768856888836,2.40577385,3220.6,3218.8,0.15542]
[1768856889028,0.84062616,3220.5,3218.8,0.15542]
[1768856889227,2.40577385,3220.6,3218.8,0.15542]
[1768856889428,2.40577385,3220.4,3218.8,40.95542]
[1768856892242,2.40577385,3220.4,3218.9,0.15541]
[1768856893846,2.40577385,3220.4,3218.8,40.8]
[1768856895643,0.84049644,3220.3,3218.8,40.8]
[1768856895841,2.40577385,3220.4,3218.8,40.8]
[1768856896139,2.40577385,3220.2,3218.8,40.8]
[1768856897132,0.15533,3220.6,3218.8,43.24585691]
[1768856897333,0.00402688,3221.0,3219.1,2.44585691]
[1768856897538,3.24652218,3220.9,3219.4,1.28649526]
[1768856897840,3.24652218,3220.8,3219.1,2.44585691]
[1768856898139,2.40577385,3220.8,3219.1,2.44585691]
[1768856898340,0.84084307,3220.7,3219.1,2.44585691]
[1768856898541,2.40577385,3220.8,3219.1,2.44585691]
[1768856898850,0.8409559,3220.7,3219.1,2.44585691]
[1768856899148,2.40577385,3220.8,3219.1,2.44585691]
[1768856899349,0.84095515,3220.7,3219.1,2.44585691]
[1768856899550,2.40577385,3220.8,3219.1,2.44585691]
[1768856899850,0.84117776,3220.7,3219.1,2.44585691]
[1768856900052,2.40577385,3220.8,3219.1,2.44585691]
[1768856900255,0.84117776,3220.7,3219.1,2.44585691]
[1768856900548,2.40577385,3220.8,3219.1,2.44585691]
[1768856900751,0.84142937,3220.7,3219.1,2.44585691]
[1768856900950,2.40577385,3220.8,3219.1,2.44585691]
[1768856901152,0.8414284,3220.7,3219.1,2.44585691]
[1768856901352,2.40577385,3220.8,3219.1,2.44585691]
[1768856901556,0.84171424,3220.7,3219.1,2.44585691]
[1768856901742,2.40577385,3220.8,3219.1,2.44585691]
[1768856901948,0.84171424,3220.7,3219.1,2.44585691]
[1768856902150,2.40577385,3220.8,3219.1,2.44585691]
[1768856902342,0.84171363,3220.7,3219.1,2.44585691]
[1768856902548,2.40577385,3220.8,3219.1,2.44585691]
[1768856902549,0.84171363,3220.6,3219.1,2.44585691]
[1768856902749,2.40577385,3220.8,3219.1,2.44585691]
[1768856902962,0.84204122,3220.7,3219.1,2.44585691]
[1768856903159,0.84204122,3220.6,3219.1,2.44585691]
[1768856903352,2.40577385,3220.8,3219.1,2.44585691]
[1768856903556,0.84242148,3220.7,3219.1,2.44585691]
[1768856903859,0.84242148,3220.6,3219.1,2.44585691]
[1768856904151,2.33869253,3220.6,3218.7,2.40367099]
[1768856904352,2.33869253,3220.4,3218.8,4.355]
[1768856905352,0.84344404,3220.3,3218.8,4.355]
[1768856905555,2.33869253,3220.4,3218.8,4.355]
[1768856905853,0.84344404,3220.3,3218.8,4.355]
[1768856906044,2.33869253,3220.4,3218.8,4.355]
[1768856906356,3.18213405,3220.3,3218.8,4.355]
[1768856906553,3.18213405,3220.2,3218.8,4.355]
[1768856906850,3.18213405,3220.1,3218.8,4.355]
[1768856907051,0.84344152,3220.0,3218.8,4.355]
[1768856907656,3.18213405,3220.0,3218.8,4.355]
[1768856907858,0.84344152,3219.9,3218.7,0.00284508]
[1768856922168,3.16858617,3219.9,3218.7,0.00284508]
[1768856922368,3.16858617,3219.8,3218.7,0.00284508]
[1768856922565,2.32514465,3219.8,3218.7,0.00284508]
[1768856922962,2.32514465,3220.2,3218.9,1.28649526]
[1768856923270,0.86361236,3220.1,3219.0,0.15541]
[1768856923470,1.756,3220.3,3219.0,0.15541]
[1768856923672,0.86368464,3220.2,3219.0,0.15541]
[1768856923977,0.86368464,3220.1,3219.0,0.15541]
[1768856924173,1.756,3220.3,3219.0,0.15541]
[1768856924473,0.86032126,3220.2,3219.0,0.15541]
[1768856924673,0.86032126,3220.1,3219.0,0.15541]
[1768856924873,2.32514465,3220.5,3219.0,0.15541]
[1768856925072,0.86034807,3220.4,3219.0,0.15541]
[1768856925273,0.86034807,3220.3,3219.0,0.15541]
[1768856925574,0.86034807,3220.2,3219.0,0.15541]
[1768856925768,2.32514465,3220.5,3219.0,0.15541]
[1768856925968,0.86032554,3220.4,3219.0,0.15541]